lending/lending_fUSD_20260312
["ID","MTS","AMOUNT","RATE_DAILY","PERIOD"]
[408248130,1773312640381,-694.30380297,0.00017826,2]
[408248132,1773312640389,-703.92126447,0.00017826,2]
[408248133,1773312640401,-497.20869982,0.00017826,2]
[408248134,1773312640410,-874.1,0.00017847,2]
[408248135,1773312640419,-5000.0,0.00017856,2]
[408248136,1773312640428,-203.80020583,0.00017856,2]
[408248137,1773312640438,-300.14869683,0.00017856,2]
[408248139,1773312640447,-2500.0,0.00017856,2]
[408248140,1773312640456,-249.72543445,0.00017856,2]
[408248141,1773312640465,-2500.0,0.00017856,2]
[408248142,1773312640474,-2001.05756134,0.00017856,2]
[408248143,1773312640483,-6513.88547931,0.00017873,2]
[408248144,1773312640492,-200.0,0.0001789,2]
[408248145,1773312640501,-1572.54693598,0.000179,2]
[408248146,1773312640510,-249.0,0.00017912,2]
[408248147,1773312640520,-229.80115972,0.00017916,2]
[408248148,1773312640529,-436.55,0.00017922,2]
[408248149,1773312640537,-500.0,0.00017924,2]
[408248150,1773312640546,-500.0,0.00017924,2]
[408248152,1773312640556,-500.0,0.00017924,2]
[408248153,1773312640565,-371.34530882,0.00017924,2]
[408248154,1773312640575,-500.0,0.00017924,2]
[408248155,1773312640585,-375.58390631,0.00017925,2]
[408248156,1773312640594,-248.20883229,0.00017925,2]
[408248157,1773312640602,-500.0,0.00017925,2]
[408248158,1773312640611,-500.0,0.00017925,2]
[408248159,1773312640620,-530.86085669,0.00017925,2]
[408248160,1773312640630,-309.75605228,0.00017925,2]
[408248161,1773312640638,-500.0,0.00017925,2]
[408248162,1773312640647,-516.64002131,0.00017925,2]
[408248163,1773312640656,-500.0,0.00017925,2]
[408248164,1773312640665,-500.0,0.00017925,2]
[408248165,1773312640674,-500.0,0.00017925,2]
[408248166,1773312640682,-500.0,0.00017925,2]
[408248167,1773312640691,-500.0,0.00017925,2]
[408248168,1773312640700,-500.0,0.00017925,2]
[408248169,1773312640709,-500.0,0.00017925,2]
[408248170,1773312640718,-500.0,0.00017925,2]
[408248171,1773312640728,-500.0,0.00017925,2]
[408248172,1773312640738,-500.0,0.00017925,2]
[408248173,1773312640748,-222.31470453,0.00017925,2]
[408248174,1773312640757,-500.0,0.00017925,2]
[408248175,1773312640766,-500.0,0.00017925,2]
[408248176,1773312640776,-588.34799988,0.00017925,2]
[408248177,1773312640785,-500.0,0.00017925,2]
[408248178,1773312640795,-500.0,0.00017925,2]
[408248179,1773312640805,-500.0,0.00017925,2]
[408248180,1773312640814,-500.0,0.00017925,2]
[408248181,1773312640824,-500.0,0.00017925,2]
[408248182,1773312640837,-500.0,0.00017925,2]
[408248183,1773312640848,-500.0,0.00017925,2]
[408248184,1773312640857,-500.0,0.00017925,2]
[408248185,1773312640867,-500.0,0.00017925,2]
[408248186,1773312640876,-500.0,0.00017925,2]
[408248187,1773312640885,-500.0,0.00017925,2]
[408248188,1773312640894,-500.0,0.00017925,2]
[408248189,1773312640906,-500.0,0.00017925,2]
[408248190,1773312640915,-500.0,0.00017925,2]
[408248191,1773312640924,-500.0,0.00017925,2]
[408248192,1773312640933,-500.0,0.00017925,2]
[408248193,1773312640943,-500.0,0.00017925,2]
[408248194,1773312640952,-500.0,0.00017925,2]
[408248195,1773312640962,-500.0,0.00017925,2]
[408248196,1773312640971,-500.0,0.00017925,2]
[408248197,1773312640981,-500.0,0.00017925,2]
[408248198,1773312640991,-527.18458678,0.00017925,2]
[408248199,1773312641001,-500.0,0.00017925,2]
[408248200,1773312641010,-500.0,0.00017925,2]
[408248201,1773312641019,-521.6043228,0.00017925,2]
[408248202,1773312641029,-500.0,0.00017925,2]
[408248203,1773312641039,-500.0,0.00017925,2]
[408248204,1773312641050,-500.0,0.00017925,2]
[408248205,1773312641060,-500.0,0.00017925,2]
[408248206,1773312641070,-500.0,0.00017925,2]
[408248207,1773312641079,-500.0,0.00017925,2]
[408248208,1773312641088,-500.0,0.00017925,2]
[408248209,1773312641097,-500.0,0.00017925,2]
[408248210,1773312641107,-658.5,0.00017925,2]
[408248211,1773312641117,-658.5,0.00017925,2]
[408248212,1773312641127,-658.5,0.00017925,2]
[408248213,1773312641136,-658.5,0.00017925,2]
[408248214,1773312641145,-658.5,0.00017925,2]
[408248215,1773312641156,-658.5,0.00017925,2]
[408248216,1773312641166,-658.5,0.00017925,2]
[408248217,1773312641175,-658.5,0.00017925,2]
[408248218,1773312641183,-658.5,0.00017925,2]
[408248219,1773312641192,-658.5,0.00017925,2]
[408248220,1773312641203,-2409244.83173369,0.00017926,2]
[408248221,1773312641215,-443.76580825,0.00017926,2]
[408248229,1773312642802,-4961.42,0.00017926,2]
[408248230,1773312642813,-500.0,0.00017926,2]
[408248231,1773312642827,-500.0,0.00017926,2]
[408248232,1773312642836,-500.0,0.00017926,2]
[408248233,1773312642876,-500.0,0.00017926,2]
[408248234,1773312642886,-151.0,0.00017926,2]
[408248235,1773312642896,-151.0,0.00017926,2]
[408248236,1773312642906,-297.615458,0.00017926,2]
[408248237,1773312642916,-151.0,0.00017926,2]
[408248238,1773312642925,-151.0,0.00017926,2]
[408248239,1773312642935,-151.0,0.00017926,2]
[408248240,1773312642943,-658.5,0.00017926,2]
[408248241,1773312642953,-658.5,0.00017926,2]
[408248242,1773312642963,-658.5,0.00017926,2]
[408248243,1773312642979,-658.5,0.00017926,2]
[408248244,1773312642988,-155.371917,0.00017927,2]
[408248245,1773312642996,-151.0,0.00017927,2]
[408248246,1773312643006,-155.530267,0.00017927,2]
[408248247,1773312643016,-151.0,0.00017927,2]
[408248248,1773312643025,-151.0,0.00017927,2]
[408248249,1773312643034,-151.0,0.00017927,2]
[408248250,1773312643043,-151.0,0.00017927,2]
[408248251,1773312643052,-200.0,0.00017927,2]
[408248252,1773312643061,-176.639564,0.00017927,2]
[408248253,1773312643071,-151.0,0.00017927,2]
[408248254,1773312643081,-151.0,0.00017927,2]
[408248255,1773312643091,-151.0,0.00017927,2]
[408248256,1773312643100,-151.0,0.00017927,2]
[408248257,1773312643109,-151.0,0.00017927,2]
[408248258,1773312643118,-4279.0370273,0.00017931,2]
[408248259,1773312643127,-200.0,0.00017933,2]
[408248260,1773312643136,-302.57736327,0.00017973,2]
[408248261,1773312643145,-500.36457257,0.00017973,2]
[408248262,1773312643154,-500.0,0.00017973,2]
[408248263,1773312643163,-188.85667259,0.00017973,2]
[408248265,1773312643173,-500.0,0.00017973,2]
[408248266,1773312643182,-500.0,0.00017973,2]
[408248268,1773312643192,-500.0,0.00017973,2]
[408248269,1773312643201,-500.44254829,0.00017973,2]
[408248270,1773312643211,-500.0,0.00017973,2]
[408248271,1773312643221,-500.0,0.00017973,2]
[408248272,1773312643230,-311.70415014,0.00017973,2]
[408248273,1773312643239,-162.21087883,0.00017973,2]
[408248274,1773312643248,-556.1229892,0.00017973,2]
[408248275,1773312643257,-500.0,0.00017973,2]
[408248276,1773312643267,-500.0,0.00017973,2]
[408248277,1773312643275,-500.0,0.0001798,2]
[408248278,1773312643285,-200.0,0.00017987,2]
[408248279,1773312643294,-500.0,0.00018,2]
[408248280,1773312643303,-10605.32048726,0.00018012,2]
[408248281,1773312643312,-1571.1996731,0.0001802,2]
[408248282,1773312643320,-500.0,0.00018026,2]
[408248283,1773312643330,-500.0,0.00018026,2]
[408248284,1773312643339,-500.0,0.00018026,2]
[408248285,1773312643348,-202.10153577,0.00018026,2]
[408248287,1773312645624,-297.89846423,0.00018026,2]
[408248288,1773312645634,-181.30761131,0.00018026,2]
[408248289,1773312645646,-318.69238869,0.00018026,2]
[408248290,1773312645655,-155.18753317,0.00018026,2]
[408248291,1773312645688,-344.81246683,0.00018026,2]
[408248292,1773312645698,-500.0,0.00018026,2]
[408248293,1773312645707,-292.01024919,0.00018026,2]
[408248294,1773312645746,-207.98975081,0.00018026,2]
[408248295,1773312645756,-129.80461894,0.00018026,2]
[408248296,1773312645895,-528.69538106,0.00018026,2]
[408248297,1773312645907,-200.0,0.00018027,2]
[408248298,1773312645916,-28587.2243017,0.00018027,2]
[408248299,1773312645925,-200.0,0.00018027,2]
[408248300,1773312645934,-874.1,0.00018121,2]
[408248301,1773312645943,-505.34836868,0.00018188,2]
[408248302,1773312645953,-200.0,0.00018207,2]
[408248303,1773312645962,-500.0,0.00018254,2]
[408248304,1773312645972,-3818.87282155,0.00018282,2]
[408248305,1773312645984,-2341.81661271,0.00018282,2]
[408248306,1773312645995,-4444.631053,0.00018282,2]
[408248307,1773312646005,-151.0,0.00018287,2]
[408248309,1773312646014,-151.0,0.00018287,2]
[408248310,1773312646025,-582.25567448,0.00018395,2]
[408248311,1773312646036,-291.84432552,0.00018395,2]
[408248312,1773312646045,-278.81,0.0001842,2]
[408248313,1773312646054,-168.0,0.00018421,2]
[408248314,1773312646064,-151.0,0.00018421,2]
[408248315,1773312646074,-151.0,0.00018421,2]
[408248316,1773312646084,-101.10106673,0.00018421,2]
[408248320,1773312744904,503.06150431,0.00015,30]
[408248322,1773312789776,1806.0,0.000139,5]
[408248323,1773313012956,-157.0,0.000151,2]
[408248324,1773313025235,157.0,0.000151,2]
[408248325,1773313114427,-158.0,0.000144,2]
[408248331,1773313255146,-692.442601,0.0001485,2]
[408248332,1773313255168,-274.0,0.00014925,2]
[408248333,1773313255190,-261.16889186,0.00014985,2]
[408248334,1773313255213,-1424.40732054,0.00015,2]
[408248335,1773313255236,-500.0,0.00015,30]
[408248336,1773313255256,-849.01517955,0.00015,30]
[408248337,1773313255277,-348.04163799,0.00015,30]
[408248338,1773313255297,-300.0,0.00015189,2]
[408248339,1773313255317,-1200.0,0.00015189,2]
[408248340,1773313255336,-300.0,0.00015189,2]
[408248341,1773313255356,-300.0,0.00015189,2]
[408248342,1773313255376,-249.72543445,0.0001519,2]
[408248343,1773313255396,-499.99914044,0.0001519,2]
[408248344,1773313258736,-4500.00085956,0.0001519,2]
[408248345,1773313258759,-300.5159349,0.0001519,2]
[408248346,1773313258781,-300.0,0.0001538,2]
[408248347,1773313258802,-250.0,0.0001538,2]
[408248348,1773313258822,-1848.28341137,0.0001538,2]
[408248349,1773313261383,-2951.64658863,0.0001538,2]
[408248350,1773313261406,-500.0,0.0001547,2]
[408248351,1773313261430,-432.0417725,0.0001566,2]
[408248352,1773313261452,-339.07227195,0.00015943,2]
[408248353,1773313261473,-1466.38,0.00016091,2]
[408248354,1773313261494,-300.0,0.00016199,2]
[408248355,1773313261516,-1209.65957275,0.000162,5]
[408248356,1773313262901,-7198.80020583,0.000162,5]
[408248357,1773313264545,-7198.80020583,0.000162,5]
[408248358,1773313265875,-7198.80020583,0.00015,2]
[408248359,1773313267046,-826.02949207,0.00015,2]
[408248360,1773313267066,-6372.77071376,0.000162,5]
[408248361,1773313268301,-7198.80020583,0.000162,5]
[408248362,1773313269837,-7198.80020583,0.000162,5]
[408248363,1773313271210,-7198.80020583,0.000162,5]
[408248364,1773313294061,-3439.99934493,0.000162,5]
[408248365,1773313294093,-3009.02886345,0.000162,5]
[408248366,1773313300033,-110.98244669,0.000162,5]
[408248367,1773313300065,-357.57344466,0.00016333,60]
[408248368,1773313300093,-217.42173032,0.00016399,2]
[408248369,1773313300121,-550.0,0.00016499,2]
[408248370,1773313301102,2000.0,0.00016423,2]
[408248371,1773313302784,-600.0,0.000165,2]
[408248372,1773313302812,-300.0,0.000165,2]
[408248373,1773313308808,-0.01,0.000165,2]
[408248374,1773313311869,-0.02,0.000165,2]
[408248375,1773313314850,-0.04,0.000165,2]
[408248376,1773313317844,-1110.0,0.0001634,2]
[408248377,1773313338626,-300.0,0.0002,20]
[408248378,1773313338648,-731.7791235,0.0002,20]
[408248379,1773313350570,150.19930871,0.0002,20]
[408248384,1773313355787,10000.01,9.5e-05,3]
[408248385,1773313355813,60842.0,9.5e-05,3]
[408248386,1773313355837,473941.94586059,9.5e-05,3]
[408248387,1773313355866,1359286.71982163,9.5e-05,3]
[408248389,1773313366268,-5456.71946374,0.00016,2]
[408248390,1773313366292,-1742.08074209,0.00016,2]
[408248391,1773313367959,-1361.55401705,0.00016,2]
[408248392,1773313367981,-300.0,0.00016499,2]
[408248393,1773313368002,-250.0,0.00016499,2]
[408248394,1773313368023,-2500.0,0.000165,2]
[408248395,1773313368044,-2787.24618878,0.000165,2]
[408248396,1773313369775,-2212.68381122,0.000165,2]
[408248397,1773313369797,-203.80020583,0.000165,2]
[408248398,1773313369818,-300.0,0.000165,2]
[408248399,1773313369839,-195.0,0.000165,2]
[408248400,1773313369860,-600.0,0.000165,2]
[408248401,1773313369881,-2500.0,0.00016587,2]
[408248402,1773313369903,-1187.31618878,0.00016587,2]
[408248403,1773313373645,-1312.68381122,0.00016587,2]
[408248404,1773313373666,-2506.63659538,0.00016587,2]
[408248405,1773313374072,200.0,0.00015,2]
[408248406,1773313398490,-367.0,0.0001662,2]
[408248407,1773313398518,-2500.0,0.00016662,2]
[408248408,1773313398542,-1680.0,0.00016704,2]
[408248409,1773313398567,-166.55,0.00016712,2]
[408248410,1773313398591,-286.45,0.00016756,2]
[408248411,1773313399993,-2213.55,0.00016756,2]
[408248412,1773313400015,-2500.0,0.00016756,2]
[408248413,1773313400035,-286.45,0.0001686,2]
[408248414,1773313401460,-933.39398187,0.0001686,2]
[408248415,1773313401482,-363.59,0.00016885,2]
[408248416,1773313401503,-1466.38,0.00016896,2]
[408248417,1773313401524,-250.0,0.00016918,2]
[408248418,1773313401545,-1000.0,0.00016986,2]
[408248419,1773313401566,-300.0,0.00016999,2]
[408248420,1773313401587,-686.63601813,0.00017,2]
[408248421,1773313402674,-4945.36398187,0.00017,2]
[408248422,1773313402694,-54.63601813,0.00017,2]
[408248423,1773313403679,-463.36398187,0.00017,2]
[408248424,1773313403703,-1110.0,0.000172,2]
[408248425,1773313403725,-1365.0,0.0001726,2]
[408248426,1773313403745,-218.15,0.00017275,2]
[408248427,1773313403764,-1843.48601813,0.0001746,2]
[408248428,1773313404668,-1891.40398187,0.0001746,2]
[408248429,1773313404691,-150.0,0.00017519,2]
[408248430,1773313404714,-755.0,0.00017521,2]
[408248431,1773313404735,-500.0,0.00017541,2]
[408248432,1773313404757,-351.35782912,0.00017541,2]
[408248433,1773313404777,-405.39249395,0.00017543,2]
[408248434,1773313404798,-703.92126447,0.00017573,2]
[408248435,1773313404819,-242.92443059,0.00017573,2]
[408248436,1773313405748,-5000.0,0.00017573,2]
[408248437,1773313406920,-3247.74231208,0.00017573,2]
[408248438,1773313406946,-1752.25768792,0.00017622,2]
[408248439,1773313413743,174.0,0.0002,20]
[408248440,1773313445949,-250.0,0.00016888,2]
[408248441,1773313447850,3179.47979923,7.945e-05,2]
[408248442,1773313447880,5603.42020077,7.945e-05,2]
[408248445,1773313461530,198.57,0.00013529,2]
[408248446,1773313467494,-5000.0,0.00016888,2]
[408248447,1773313511533,-313.0,0.000204,120]
[408248448,1773313511563,-7266.8176279,0.000235,30]
[408248449,1773313511586,-16962.383108,0.00023668,30]
[408248454,1773313536096,-5000.0,0.0001687,2]
[408248455,1773313537688,-1695.73,0.0001687,2]
[408248456,1773313537709,-2470.6777039,0.00016888,2]
[408248457,1773313537730,-833.5922961,0.00017214,2]
[408248458,1773313538848,-1666.4077039,0.00017214,2]
[408248459,1773313538872,-1062.70146261,0.00017451,2]
[408248460,1773313538897,-1355.159,0.0001754,2]
[408248461,1773313538926,-363.9842,0.0001754,2]
[408248462,1773313538957,-551.74763349,0.0001754,2]
[408248463,1773313539999,-2775.48196651,0.0001754,2]
[408248464,1773313540020,-300.0,0.00017572,2]
[408248465,1773313540040,-1200.0,0.00017572,2]
[408248466,1773313540061,-724.51803349,0.00017573,2]
[408248467,1773313541389,-15.08759588,0.00017573,2]
[408248468,1773313541411,-214.3449376,0.00017573,2]
[408248469,1773313541433,-4770.56746652,0.00017573,2]
[408248470,1773313542568,-5000.0,0.00017573,2]
[408248471,1773313543732,-4414.89595523,0.00017573,2]
[408248472,1773313543753,-585.10404477,0.00017573,2]
[408248473,1773313544747,-62.62923184,0.00017573,2]
[408248474,1773313544767,-639.4662088,0.00017573,2]
[408248475,1773313544788,-4297.90455936,0.00017622,2]
[408248476,1773313546016,-154.35958325,0.00017622,2]
[408248477,1773313546039,-550.0,0.0001763,2]
[408248478,1773313546059,-841.1,0.00017631,2]
[408248479,1773313546080,-841.1,0.00017631,2]
[408248480,1773313546103,-841.1,0.00017631,2]
[408248481,1773313546125,-841.1,0.00017631,2]
[408248482,1773313546148,-841.1,0.00017631,2]
[408248483,1773313546170,-90.14041675,0.00017631,2]
[408248484,1773313547181,-139.66074297,0.00017631,2]
[408248485,1773313547203,-500.0,0.00017631,2]
[408248486,1773313547225,-500.0,0.0001764,2]
[408248487,1773313547248,-500.0,0.0001764,2]
[408248488,1773313547269,-516.64002131,0.0001764,2]
[408248489,1773313547291,-500.0,0.0001764,2]
[408248490,1773313547314,-500.0,0.0001764,2]
[408248491,1773313547336,-500.0,0.0001764,2]
[408248492,1773313547357,-513.80210201,0.0001764,2]
[408248493,1773313547379,-500.0,0.0001764,2]
[408248494,1773313547400,-329.89713371,0.0001764,2]
[408248495,1773313566878,315.42358121,0.000237,30]
[408248497,1773313567994,156.26986542,0.000237,30]
[408248498,1773313630042,-5745.69,0.00017118,2]
[408248499,1773313630078,-209.117595,0.00017465,2]
[408248500,1773313630102,-186.97354337,0.0001754,2]
[408248501,1773313630124,-865.3277,0.0001754,2]
[408248502,1773313630153,-8554.6245,0.0001754,2]
[408248503,1773313630175,-166.68,0.00017553,2]
[408248504,1773313630198,-227.02109222,0.00017573,2]
[408248505,1773313630219,-532.88850735,0.00017573,2]
[408248506,1773313630241,-9341.37197804,0.0001763,2]
[408248507,1773313630263,-300.0,0.00017639,2]
[408248508,1773313630284,-550.0,0.00017639,2]
[408248509,1773313630306,-300.0,0.00017639,2]
[408248510,1773313630329,-500.0,0.0001764,2]
[408248511,1773313630351,-500.0,0.0001764,2]
[408248512,1773313630373,-500.0,0.0001764,2]
[408248513,1773313630395,-500.0,0.0001764,2]
[408248514,1773313630417,-500.0,0.0001764,2]
[408248515,1773313630439,-500.0,0.0001764,2]
[408248516,1773313630462,-500.0,0.0001764,2]
[408248517,1773313630484,-500.0,0.0001764,2]
[408248518,1773313630511,-500.0,0.0001764,2]
[408248519,1773313630533,-236.65329114,0.0001764,2]
[408248520,1773313630556,-500.0,0.0001764,2]
[408248521,1773313630579,-371.34530882,0.0001764,2]
[408248522,1773313630602,-526.72,0.0001764,2]
[408248523,1773313630623,-526.72,0.0001764,2]
[408248524,1773313630646,-526.72,0.0001764,2]
[408248525,1773313630668,-526.72,0.0001764,2]
[408248526,1773313630690,-526.72,0.0001764,2]
[408248527,1773313630714,-526.72,0.0001764,2]
[408248528,1773313630743,-526.72,0.0001764,2]
[408248529,1773313630765,-526.72,0.0001764,2]
[408248530,1773313630788,-526.72,0.0001764,2]
[408248531,1773313630810,-526.72,0.0001764,2]
[408248532,1773313630833,-500.0,0.0001764,2]
[408248533,1773313630856,-500.0,0.0001764,2]
[408248534,1773313630879,-500.0,0.0001764,2]
[408248535,1773313630901,-500.0,0.0001764,2]
[408248536,1773313630922,-500.0,0.0001764,2]
[408248537,1773313630944,-500.0,0.0001764,2]
[408248538,1773313630966,-500.0,0.0001764,2]
[408248539,1773313630989,-500.0,0.0001764,2]
[408248540,1773313631012,-500.0,0.0001764,2]
[408248541,1773313631035,-500.0,0.0001764,2]
[408248542,1773313631057,-500.0,0.0001764,2]
[408248543,1773313631078,-500.0,0.0001764,2]
[408248544,1773313631100,-500.0,0.0001764,2]
[408248545,1773313631121,-500.0,0.0001764,2]
[408248546,1773313631143,-184.77383357,0.0001764,2]
[408248547,1773313631169,-650.16653278,0.0001764,2]
[408248548,1773313631195,-650.16653278,0.0001764,2]
[408248549,1773313631220,-650.16653278,0.0001764,2]
[408248550,1773313631243,-650.16653278,0.0001764,2]
[408248551,1773313631267,-650.16653278,0.0001764,2]
[408248552,1773313631289,-650.16653278,0.0001764,2]
[408248553,1773313631312,-650.16653278,0.0001764,2]
[408248554,1773313631335,-409.16692103,0.0001764,2]
[408248555,1773313639004,500.01,0.000187,30]
[408248556,1773313640004,524.28751885,0.000187,30]
[408248557,1773313646905,-2423.5739,0.00016788,2]
[408248558,1773313646928,-500.0,0.00017631,2]
[408248559,1773313646949,-500.0,0.00017631,2]
[408248560,1773313646970,-500.0,0.00017631,2]
[408248561,1773313646991,-500.0,0.00017631,2]
[408248562,1773313647012,-500.0,0.00017631,2]
[408248563,1773313647034,-500.0,0.00017631,2]
[408248564,1773313647054,-151.7276571,0.00017631,2]
[408248565,1773313647075,-200.0,0.00017631,2]
[408248566,1773313647281,-151.0,0.00017631,2]
[408248567,1773313647305,-500.0,0.00017631,2]
[408248568,1773313647326,-151.0,0.00017631,2]
[408248569,1773313647347,-588.40591804,0.00017631,2]
[408248570,1773313647370,-289.57214403,0.00017631,2]
[408248571,1773313647392,-151.0,0.00017631,2]
[408248572,1773313647414,-151.0,0.00017631,2]
[408248573,1773313647434,-500.0,0.0001764,2]
[408248574,1773313647456,-500.0,0.0001764,2]
[408248575,1773313647477,-500.0,0.0001764,2]
[408248576,1773313647499,-500.0,0.0001764,2]
[408248577,1773313647524,-500.0,0.0001764,2]
[408248578,1773313647547,-500.0,0.0001764,2]
[408248579,1773313647570,-500.0,0.0001764,2]
[408248580,1773313647593,-500.0,0.0001764,2]
[408248581,1773313647616,-500.0,0.0001764,2]
[408248582,1773313647638,-500.0,0.0001764,2]
[408248583,1773313647662,-240.99961175,0.0001764,2]
[408248584,1773313647685,-650.16653278,0.0001764,2]
[408248585,1773313647709,-650.16653278,0.0001764,2]
[408248586,1773313647732,-650.16653278,0.0001764,2]
[408248587,1773313647755,-650.16653278,0.0001764,2]
[408248588,1773313647779,-650.16653278,0.0001764,2]
[408248589,1773313647801,-650.16653278,0.0001764,2]
[408248590,1773313647824,-650.16653278,0.0001764,2]
[408248591,1773313647846,-650.16653278,0.0001764,2]
[408248592,1773313647868,-650.16653278,0.0001764,2]
[408248593,1773313647891,-650.16653278,0.0001764,2]
[408248594,1773313647914,-650.16653278,0.0001764,2]
[408248595,1773313647938,-650.16653278,0.0001764,2]
[408248596,1773313647960,-650.16653278,0.0001764,2]
[408248597,1773313647982,-650.16653278,0.0001764,2]
[408248598,1773313648004,-650.16653278,0.0001764,2]
[408248599,1773313648027,-650.16653278,0.0001764,2]
[408248600,1773313648049,-650.16653278,0.0001764,2]
[408248601,1773313648071,-650.16653278,0.0001764,2]
[408248602,1773313648094,-650.16653278,0.0001764,2]
[408248603,1773313648116,-650.16653278,0.0001764,2]
[408248604,1773313648138,-650.16653278,0.0001764,2]
[408248605,1773313648160,-650.16653278,0.0001764,2]
[408248606,1773313648182,-650.16653278,0.0001764,2]
[408248607,1773313648204,-650.16653278,0.0001764,2]
[408248608,1773313648226,-650.16653278,0.0001764,2]
[408248609,1773313648249,-650.16653278,0.0001764,2]
[408248610,1773313648271,-97.3909168,0.0001764,2]
[408248618,1773313747716,240.0,0.000237,30]
[408248626,1773313820685,498.9859761,0.000237,30]
[408248634,1773313831815,-500.0,0.00016788,2]
[408248636,1773313831824,-300.0,0.00016788,2]
[408248638,1773313831834,-291.0,0.00016788,2]
[408248639,1773313831843,-12333.90390716,0.00016856,2]
[408248640,1773313831948,-664.54991355,0.00016856,2]
[408248641,1773313831965,-1606.72727158,0.00016856,2]
[408248642,1773313831987,-1998.50742485,0.00016856,2]
[408248643,1773313832009,-4158.62726896,0.00016856,2]
[408248644,1773313832021,-927.69623708,0.00016856,2]
[408248645,1773313832035,-748.00966555,0.00016856,2]
[408248654,1773313832239,-5766.90831127,0.00016856,2]
[408248655,1773313832249,-250.0,0.00016886,2]
[408248656,1773313832258,-398.86179408,0.00016886,2]
[408248657,1773313832267,-185.02,0.00016911,2]
[408248658,1773313832277,-170.349282,0.00016984,7]
[408248659,1773313832287,-345.834663,0.00017029,7]
[408248660,1773313832295,-444.07375615,0.00017573,2]
[408248661,1773313832305,-2437.5719377,0.00017573,2]
[408248662,1773313832313,-10597.51870592,0.00017573,2]
[408248663,1773313832322,-1200.0,0.0001763,2]
[408248664,1773313832331,-300.0,0.0001763,2]
[408248665,1773313832340,-1200.0,0.0001763,2]
[408248666,1773313832349,-300.0,0.0001763,2]
[408248667,1773313832358,-151.0,0.00017631,2]
[408248668,1773313832368,-151.0,0.00017631,2]
[408248669,1773313832377,-151.0,0.00017631,2]
[408248670,1773313832387,-151.0,0.00017631,2]
[408248671,1773313832396,-151.0,0.00017631,2]
[408248672,1773313832406,-151.0,0.00017631,2]
[408248673,1773313832416,-151.0,0.00017631,2]
[408248674,1773313832425,-151.0,0.00017631,2]
[408248675,1773313832435,-151.0,0.00017631,2]
[408248676,1773313832445,-151.0,0.00017631,2]
[408248677,1773313832454,-153.20077314,0.00017631,2]
[408248678,1773313832464,-7463.1718286,0.00017639,2]
[408248679,1773313832474,-550.0,0.0001764,2]
[408248680,1773313832484,-500.0,0.0001764,2]
[408248681,1773313832493,-500.0,0.0001764,2]
[408248682,1773313832502,-500.0,0.0001764,2]
[408248683,1773313832512,-500.0,0.0001764,2]
[408248684,1773313832521,-500.0,0.0001764,2]
[408248685,1773313832532,-500.0,0.0001764,2]
[408248686,1773313832542,-500.0,0.0001764,2]
[408248687,1773313832555,-500.0,0.0001764,2]
[408248688,1773313832564,-500.0,0.0001764,2]
[408248689,1773313832573,-500.0,0.0001764,2]
[408248690,1773313832582,-500.0,0.0001764,2]
[408248691,1773313832592,-248.8,0.0001764,2]
[408248692,1773313832602,-500.0,0.0001764,2]
[408248693,1773313832611,-309.75605228,0.0001764,2]
[408248694,1773313832624,-1174108.20485745,0.00017641,2]
[408248695,1773313833003,-42243.8746865,0.00017641,2]